Cogmind - Beta 13 @@@ ROGUE MODE // 2024.03.16 @ 14:50:51 Player: Cheeriohz Result: Destroyed by D-53 Grenadier with Mini Grenade Launcher Performance ------------- Evolutions (0) 0 Regions Visited (2) 400 Robots Destroyed (11) 55 Value Destroyed (94) 94 Prototype IDs (0) 0 Alien Tech Used (0) 0 Bonus (0) 0 TOTAL SCORE: 549 Bonus ------- None Cogmind --------- Core Integrity 0/250 Matter 289/300 Energy 100/100 System Corruption 0% Temperature Cool (0) Movement Core (200) Ox3 Location -10/Mines Parts ------- > --- POWER (1) -------- (None) > --- PROPULSION (2) --- (None) > --- UTILITY (2) ------ Medium Storage Unit > --- WEAPON (2) ------- Light Assault Rifle > --- INVENTORY (10) --- Ion Engine Light Treads Light Treads Targeting Computer EM Pulse Gun Light Assault Rifle Mining Laser Peak State ------------ > --- POWER ------------ Ion Engine > --- PROPULSION ------- Aluminum Leg Aluminum Leg > --- UTILITY ---------- Small Storage Unit Improved Terrain Scanner > --- WEAPON ----------- Small Laser Light Assault Rifle > --- INVENTORY -------- Ion Engine Light Treads Light Treads Wheel Wheel Compact Wheel Compact Wheel EM Pulse Gun [Rating: 9] Favorites ----------- Power Ion Engine Engine Ion Engine Propulsion Wheel Leg Aluminum Leg Wheel Wheel Utility Improved Terrain Scanner Device Improved Terrain Scanner Storage Medium Storage Unit Weapon Small Laser Energy Gun Small Laser Ballistic Gun Light Assault Rifle Build | -11 -10 -10 ------- Run | Yrd Mat Min Slots Evolved . | . . . Power . | . . . Propulsion . | . . . Utility . | . . . Weapon . | . . . Parts Attached 9 | 4 1 4 Power 1 | . . 1 Engine 1 | . . 1 Core . | . . . Reactor . | . . . Propulsion 4 | 2 . 2 Treads . | . . . Leg . | . . . Wheel 4 | 2 . 2 Hover . | . . . Flight . | . . . Utility 2 | 1 1 . Device 1 | 1 . . Storage 1 | . 1 . Processor . | . . . Hackware . | . . . Protection . | . . . Artifact . | . . . Weapon 2 | 1 . 1 Energy Gun . | . . . Energy Cannon . | . . . Ballistic Gun 2 | 1 . 1 Ballistic Cannon . | . . . Launcher . | . . . Special Weapon . | . . . Impact Weapon . | . . . Slashing Weapon . | . . . Piercing Weapon . | . . . Special Melee Weapon . | . . . Unidentified Prototypes . | . . . Parts Lost 7 | . . 7 Power 1 | . . 1 Propulsion 4 | . . 4 Utility 1 | . . 1 Weapon 1 | . . 1 Highest Loss Streak 5 | . . 5 To Critical Strikes . | . . . Average Slot Usage (%) 96 | . 100 95 Engine 13 | . 14 13 Wheel 25 | . 28 24 Device 14 | . 14 14 Storage 14 | . 14 14 Energy Gun 14 | . 14 14 Ballistic Gun 14 | . 14 14 Naked Turns . | . . . Heaviest Build 18 | 13 18 18 Greatest Support 26 | 20 20 26 Greatest Overweight (x) 5 | . . 5 Average Overweight (x) . | . . . Largest Inventory Capacity 10 | 8 10 10 Average Capacity 9 | 8 8 10 Most Carried 9 | 8 9 9 Average Carried 7 | 6 7 8 Final Capacity 10 | 8 10 10 Final Carried 9 | 6 9 7 Class Distribution -------------------- 100% | Mutant Dominant Class ---------------- Mutant | -10/Materials Mutant | -10/Mines Resources | -11 -10 -10 ----------- Run | Yrd Mat Min Matter Collected 278 | 229 . 49 Remotely . | . . . Salvage Created 234 | 141 . 93 Parts 23 | 14 . 9 Haulers Intercepted . | . . . Recyclers Shooed 1 | 1 . . Parts Field Recycled . | . . . Retrieved Matter . | . . . Parts Self-Destructed . | . . . Prevented . | . . . Kills | -11 -10 -10 ------- Run | Yrd Mat Min Combat Hostiles Destroyed 6 | . . 6 Guns 6 | . . 6 Classes Destroyed 3 | 2 . 1 Tunneler 4 | 4 . . Recycler 1 | 1 . . Swarmer 6 | . . 6 Best Kill Streak 4 | 3 . 4 Combat Bots Only 4 | . . 4 Max Kills in Single Turn 1 | 1 . 1 Gunslinging . | . . . Exploded . | . . . Melee . | . . . Uniques/NPCs Destroyed . | . . . Combat | -11 -10 -10 -------- Run | Yrd Mat Min Hostile Shots Fired 71 | . . 71 Missed 15 | . . 15 Damage Taken 776 | . . 776 Core 269 | . . 269 Absorbed by Shields . | . . . Core Remaining (%) 100 | 100 . . Volleys Fired 44 | 21 . 23 Largest 2 | 2 . 2 Hottest 80 | 80 . 60 Shots Fired 82 | 38 . 44 Gun 82 | 38 . 44 Cannon . | . . . Launcher . | . . . Special . | . . . Kinetic 32 | 9 . 23 Thermal 42 | 21 . 21 Explosive . | . . . Electromagnetic 8 | 8 . . Robot Hit Streak 5 | 5 . 5 Robot Miss Streak 5 | 4 . 5 Penetration Max . | . . . Secondary Targets 1 | . . 1 Max Gunslinging Chain 1 | . . 1 Shots Hit Robots 49 | 23 . 26 Core Hits 14 | 6 . 8 Critical Kills . | . . . Critical Parts Destroyed . | . . . Critical Strikes 1 | 1 . . Corrupt 1 | 1 . . Melee Attacks . | . . . Impact . | . . . Slashing . | . . . Piercing . | . . . Sneak Attacks . | . . . Combat Hostiles . | . . . Follow-up Attacks . | . . . Damage Inflicted 500 | 269 . 231 Guns 472 | 241 . 231 Cannons . | . . . Explosions 28 | 28 . . Melee . | . . . Ramming . | . . . Kinetic 140 | 54 . 86 Thermal 296 | 151 . 145 Explosive . | . . . Electromagnetic 64 | 64 . . Impact . | . . . Slashing . | . . . Piercing . | . . . Highest Corruption . | . . . Average Corruption . | . . . Corruption Purged . | . . . Corruption Blocked . | . . . Overload Shots . | . . . Overflow Damage . | . . . Projectiles . | . . . Explosions . | . . . Melee . | . . . Knockbacks . | . . . Impact . | . . . Kinetic . | . . . Secondary . | . . . Self-Inflicted Damage . | . . . Shots . | . . . Rammed . | . . . Targets Rammed . | . . . Kicked . | . . . Crushed . | . . . Highest Temperature 80 | 72 . 80 Average Temperature 35 | 36 . 35 Received Heat Transfer . | . . . Siege Activations . | . . . Robots Corrupted . | . . . Combat Hostiles . | . . . Parts Fried . | . . . Impact Corruptions . | . . . Robots Melted . | . . . Combat Hostiles . | . . . Parts Melted . | . . . Heat Transferred 600 | 275 . 325 Parts Sabotaged . | . . . Parts Stolen . | . . . Parts Stripped . | . . . Power Chain Reactions 1 | 1 . . Alert | -11 -10 -10 ------- Run | Yrd Mat Min Peak Influence 207 | 25 31 207 Initial 16 | . 16 12 Average 54 | 13 23 96 Maximum Alert Level 1 | . . 1 Low Security (%) 96 | 100 100 92 Level 1 3 | . . 7 Level 2 . | . . . Level 3 . | . . . Level 4 . | . . . Level 5 . | . . . High Security . | . . . Max Security . | . . . Squads Dispatched 2 | . 2 . Investigation . | . . . Extermination . | . . . Reinforcement 2 | . 2 . Assault . | . . . Garrison . | . . . Intercept . | . . . Searches Triggered . | . . . Construction Impeded . | . . . Haulers Reinforced . | . . . Active Scanning Responses . | . . . Cargo Convoy Interrupts . | . . . Stealth | -11 -10 -10 --------- Run | Yrd Mat Min Distress Signals . | . . . Communications Jammed . | . . . Distress Signals . | . . . Times Spotted 14 | . 2 12 Peak Tracking Total 4 | . 2 4 Tactical Retreats 3 | . . 3 Traps | -11 -10 -10 ------- Run | Yrd Mat Min Traps Triggered . | . . . Indirectly . | . . . Trap Hack Attempts . | . . . Triggered . | . . . Disarmed . | . . . Reprogrammed . | . . . Reused . | . . . Traps Extracted . | . . . Installed . | . . . Triggered . | . . . Machines | -11 -10 -10 ---------- Run | Yrd Mat Min Machines Disabled . | . . . Max in Single Turn . | . . . Machines Repaired . | . . . Machines Dismantled . | . . . Machines Sabotaged . | . . . Overloaded Fab Kills . | . . . Hacking | -11 -10 -10 --------- Run | Yrd Mat Min Machines Accessed . | . . . Terminals . | . . . Fabricators . | . . . Repair Stations . | . . . Recycling Units . | . . . Scanalyzers . | . . . Garrison Access . | . . . Total Hacks . | . . . Successful . | . . . Failed . | . . . Catastrophic . | . . . Database Lockouts . | . . . Manual . | . . . Terminals . | . . . Fabricators . | . . . Repair Stations . | . . . Recycling Units . | . . . Scanalyzers . | . . . Garrison Access . | . . . Terminal Hacks . | . . . Fabricator Hacks . | . . . Repair Station Hacks . | . . . Recycling Unit Hacks . | . . . Scanalyzer . | . . . Garrison Access Hacks . | . . . Unauthorized Hacks . | . . . Terminals . | . . . Fabricators . | . . . Repair Stations . | . . . Recycling Units . | . . . Scanalyzers . | . . . Garrison Access . | . . . Data Cores Recovered . | . . . Used . | . . . Hacking Detections . | . . . Full Trace Events . | . . . Feedback Events . | . . . Feedback Blocked . | . . . Robot Schematics Acquired . | . . . Robots Built . | . . . Authchips . | . . . Time . | . . . Total Robot Build Rating . | . . . Part Schematics Acquired . | . . . Parts Built . | . . . Authchips . | . . . Time . | . . . Total Part Build Rating . | . . . Parts Repaired . | . . . Time . | . . . Parts Recycled . | . . . Recycled Matter . | . . . Retrieved Matter . | . . . Retrieved Components . | . . . Parts Scanalyzed . | . . . Part Schematics Acquired . | . . . Parts Damaged . | . . . Bothacking | -11 -10 -10 ------------ Run | Yrd Mat Min Used RIF Installer . | . . . Robots Hacked . | . . . Non-combat . | . . . Combat . | . . . Robot Hacks Applied . | . . . Relay Couplers Released . | . . . Fabnet Peak Effective % . | . . . Robots Rewired . | . . . Allies Hacked . | . . . Hacks Repelled . | . . . Allies | -11 -10 -10 -------- Run | Yrd Mat Min Total Allies . | . . . Largest Group . | . . . Highest-Rated Group . | . . . Highest-Rated Ally . | . . . Total Orders . | . . . Ally Attacks . | . . . Total Damage . | . . . Kills . | . . . Allies Corrupted . | . . . Allies Melted . | . . . Intel | -11 -10 -10 ------- Run | Yrd Mat Min Robot Analysis Total . | . . . Derelict Logs Recovered 1 | . . 1 Drone Launches . | . . . Drone Recoveries . | . . . Exploration | -11 -10 -10 ------------- Run | Yrd Mat Min Turns Passed 398 | 112 101 185 Spaces Moved 272 | 41 98 133 Core 1 | . . 1 Treads . | . . . Legs 30 | 30 . . Wheels 241 | 11 98 132 Hover . | . . . Flight . | . . . Fastest Speed 80 | 80 80 80 Average Speed 85 | 109 80 82 Slowest Speed 300 | 120 80 300 Overloaded Moves . | . . . Propulsion Burnouts . | . . . Robots Hopped . | . . . Cave-ins Triggered . | . . . Exploration Rate (%) 24 | 3 26 43 Regions Visited 2 Branch Regions 1 Pre-discovered Areas 1 | . . 1 Known Exits Taken . | . . . Unknown Exits Taken 2 | 1 1 . Scrap Searched . | . . . Spaces Dug . | . . . Terrain Destroyed 3 | 3 . . Melee . | . . . Projectile . | . . . AOE 3 | 3 . . Terrain Rammed . | . . . Walls Destroyed . | . . . Machines Disabled . | . . . Actions | -11 -10 -10 --------- Run | Yrd Mat Min Total 363 | 74 120 169 Wait 27 | 1 18 8 Move 270 | 40 97 133 Hop . | . . . Pick Up 7 | 4 3 . Fast Attach 1 | 1 . . Attach 2 | . . 2 Detach . | . . . Swap 6 | 3 1 2 Drop 6 | 4 1 1 Fire 44 | 21 . 23 Melee . | . . . Ram . | . . . Kick . | . . . Crush . | . . . Escape Stasis . | . . . Rewire . | . . . Trap . | . . . Miscellaneous . | . . . Route ------- -11/Scrapyard -10/Materials -10/Mines History --------- Turn | Location | Event 1 | -11/Scrapyard | Discovered new exit (range 3) 113 | -11/Scrapyard | Entered Materials 188 | -10/Materials | Discovered new exit (range 14) 214 | -10/Materials | Entered Mines 216 | -10/Mines | Assembled infested the area 233 | -10/Mines | Learned location of Zion (-7) 314 | -10/Mines | Build established: Mutant 392 | -10/Mines | Core integrity fell below 50% 398 | -10/Mines | Core integrity fell below 20% 399 | -10/Mines | Destroyed by D-53 Grenadier with Mini Grenade Launcher Last Messages --------------- 00233_ Acquired derelict log, extracted data. World map updated: -7/Zion. 00238_ K-01 Serf collects debris. 00294_ S-10 Pest destroyed. 00294_ Switching to secondary target: S-10 Pest. 00297_ S-10 Pest destroyed. 00300_ Acquired 20 matter. 00301_ Acquired 14 matter. 00347_ Destroyed Flight Unit. 00347_ S-10 Pest destroyed. 00348_ Wheel destroyed. 00355_ S-10 Pest destroyed. 00381_ Dropped Ion Engine. 00384_ Acquired 15 matter. 00388_ Ion Engine destroyed. 00393_ Sml. Laser destroyed. 00393_ Imp. Terrain Scanner destroyed. 00397_ Com. Wheel destroyed. 00397_ Wheel destroyed. 00399_ The unstable cave ceiling collapses. Map ----- +----------------------------------------------------+ | ?????????????????????# ### | | ????????????????????## | | ???????????????????## | | ???????????????????# ## | | ???????????????????# #? | | ???????????????????## # ##? | | ????????????????????#### #####?# | | ???????????????????????# #?????? | | ???????????????????????# ####### | | ???? ??????????????????# | | ???# ""????? ????????#?# | | ???# ??????????????#???########## | | ???# ??? "?????????#????#???????# | | #??# ? ?????#???????????????# | | ???# """ ????????#??????????????# | | ##?# """ ???????#??####?#??????## | | ???? """??"???????## #####????# | | ???# ?????#?#### *%= #????# | | ?#??# ###?##### = ####### | | ??### #### ### | | ?## [ ##?# | | ?# # #??######### | | # ##??????????# | | # ###??????????# | | # d #??#?????????## | | @ d # #?????????????? | | # # ## ##?????#???????? | | ?### #####??????????????? | | ??## ##??#?#?????????????? | | ???# ##???????????????????? | | ??# #?#???#?????????????# | | ??# #??????#???????????# | | ??## #?????????????????? | | ??##### #?????????????#???? | | ??????## ##??#??????????????? | | ???#???#######??????????????????? | | ????????????????????????????????? | | ??#??????##????#????????????????? | | | | | | | | | | | | | | | | | | | | | | | | | +----------------------------------------------------+ Best States ------------- Heat Dissipation 25 Energy Generation 10 Energy Capacity 250 Matter Stores 300 Matter Capacity 300 Sight Range 16 Terrain Scan Range 16 Terrain Scan Density 10 Evasion (%) 55 Item Schematics ----------------- None Robot Schematics ------------------ None Fabricated ------------ Nothing Alien Tech Used ----------------- None Achievements -------------- None Challenges ------------ None Game ------ Seed MasterHardcellAutobeam Manual? 0 Play Time 00:07:06 Cumulative 70.1 hours Start 2024.03.16 @ 14:45:48 End 2024.03.16 @ 14:50:51 Sessions 1 Manual Loads 0 Difficulty Rogue Special Mode None Game No. 64 Rogue 64 Adventurer 0 Explorer 0 Win Type - Total 2 Types 2/0/0/0/0/0/0/0/0 Lore% 36 Gallery% 50 Achievement% 40 Wizard Run 0 Options --------- Layout 1 ASCII 0 Keyboard 1 Movement Numpad Keybinds 0 Fullscreen 1 Font 32/SmallcapsGlow Map View 77x35 Zoom Use 0% Tactical HUD 1 Map Filters NONE Filters NONE Steam 1 RUN: bc6bc3c6-5138-4693-a717-8f905e5573ee